[Event "Early-Titled-Tuesday-Blitz-May-07-2024"]
[Site "Chess.com"]
[Date "2024.05.07"]
[Round "7"]
[White "twofoxniel"]
[Black "Kyrko_Gamba"]
[Result "1-0"]
[WhiteElo "2670"]
[BlackElo "2497"]
[TimeControl "180+1"]
[EndTime "9:22:29 PDT"]
[Termination "twofoxniel won by checkmate"]

1. e4 {[%clk 0:03:00.9]} 1... c5 {[%clk 0:02:58.7]} 2. b4 {[%clk 0:02:59.9]}
2... cxb4 {[%clk 0:02:57.3]} 3. d4 {[%clk 0:02:59.7]} 3... g6 {[%clk 0:02:57.4]}
4. a3 {[%clk 0:02:57.9]} 4... bxa3 {[%clk 0:02:50.3]} 5. Nf3 {[%clk 0:02:55.1]}
5... Bg7 {[%clk 0:02:50.3]} 6. Bxa3 {[%clk 0:02:49]} 6... d6 {[%clk 0:02:49.6]}
7. Bc4 {[%clk 0:02:43.4]} 7... Nf6 {[%clk 0:02:36.5]} 8. Qe2 {[%clk 0:02:40.7]}
8... O-O {[%clk 0:02:35.6]} 9. O-O {[%clk 0:02:39.8]} 9... d5 {[%clk 0:02:35]}
10. exd5 {[%clk 0:02:38.1]} 10... Nxd5 {[%clk 0:02:34.7]} 11. Re1 {[%clk
0:02:32.8]} 11... Nc6 {[%clk 0:02:33.3]} 12. c3 {[%clk 0:02:31.3]} 12... Be6
{[%clk 0:02:18.9]} 13. Ng5 {[%clk 0:02:29.6]} 13... Bf5 {[%clk 0:02:16.4]} 14.
Qf3 {[%clk 0:02:25.7]} 14... e6 {[%clk 0:01:45.3]} 15. Bxf8 {[%clk 0:02:24.5]}
15... Bxf8 {[%clk 0:01:38.1]} 16. Ne4 {[%clk 0:02:21.2]} 16... h5 {[%clk
0:01:37.2]} 17. h3 {[%clk 0:02:20.6]} 17... h4 {[%clk 0:01:36.4]} 18. Nbd2
{[%clk 0:02:18.7]} 18... Rc8 {[%clk 0:01:34.3]} 19. Rec1 {[%clk 0:01:59.6]}
19... Bh6 {[%clk 0:01:33.3]} 20. Rd1 {[%clk 0:01:47.4]} 20... Nce7 {[%clk
0:01:21.6]} 21. Bxd5 {[%clk 0:01:19.8]} 21... exd5 {[%clk 0:01:08.8]} 22. Nf6+
{[%clk 0:01:14.2]} 22... Kg7 {[%clk 0:01:08.7]} 23. Ng4 {[%clk 0:01:14.2]} 23...
Bg5 {[%clk 0:01:03.6]} 24. Rxa7 {[%clk 0:01:12.7]} 24... Bc2 {[%clk 0:00:50.4]}
25. Rc1 {[%clk 0:01:11.3]} 25... Be4 {[%clk 0:00:48.1]} 26. Qe2 {[%clk
0:00:53.4]} 26... Nc6 {[%clk 0:00:42.8]} 27. Raa1 {[%clk 0:00:49.7]} 27... Bf5
{[%clk 0:00:33.9]} 28. Re1 {[%clk 0:00:46.9]} 28... Qc7 {[%clk 0:00:27.8]} 29.
Nf3 {[%clk 0:00:46.6]} 29... Be4 {[%clk 0:00:25.2]} 30. Nxg5 {[%clk 0:00:46.1]}
30... Nd8 {[%clk 0:00:19.7]} 31. Nxe4 {[%clk 0:00:44.9]} 31... dxe4 {[%clk
0:00:20.2]} 32. Qxe4 {[%clk 0:00:45.4]} 32... Qxc3 {[%clk 0:00:21.1]} 33. Qe5+
{[%clk 0:00:44.3]} 33... Kg8 {[%clk 0:00:11]} 34. Nf6+ {[%clk 0:00:44.4]} 34...
Kf8 {[%clk 0:00:09.9]} 35. Qe7+ {[%clk 0:00:37.6]} 35... Kg7 {[%clk 0:00:09.7]}
36. Ne8+ {[%clk 0:00:38.1]} 36... Kg8 {[%clk 0:00:06.4]} 37. Rac1 {[%clk
0:00:34.8]} 37... Qxc1 {[%clk 0:00:06]} 38. Rxc1 {[%clk 0:00:35.3]} 38... Rxc1+
{[%clk 0:00:06.5]} 39. Kh2 {[%clk 0:00:35.9]} 39... Nc6 {[%clk 0:00:06.8]} 40.
Qxb7 {[%clk 0:00:34.7]} 40... Nxd4 {[%clk 0:00:06.5]} 41. Qb2 {[%clk 0:00:31.3]}
41... Rd1 {[%clk 0:00:04.3]} 42. Nf6+ {[%clk 0:00:31.1]} 42... Kg7 {[%clk
0:00:04.1]} 43. Ng4 {[%clk 0:00:31.1]} 43... Kh7 {[%clk 0:00:04.3]} 44. Ne3
{[%clk 0:00:30.4]} 44... Rd3 {[%clk 0:00:03.6]} 45. Ng4 {[%clk 0:00:29.5]} 45...
Ne6 {[%clk 0:00:03.4]} 46. Qf6 {[%clk 0:00:30]} 46... Rd7 {[%clk 0:00:02.9]} 47.
Ne5 {[%clk 0:00:30]} 47... Rc7 {[%clk 0:00:02.2]} 48. Nxf7 {[%clk 0:00:30.3]}
48... Ng7 {[%clk 0:00:02.3]} 49. Qxh4+ {[%clk 0:00:28.2]} 49... Nh5 {[%clk
0:00:02.8]} 50. Ng5+ {[%clk 0:00:25.5]} 50... Kh6 {[%clk 0:00:03.4]} 51. g4
{[%clk 0:00:25.3]} 51... Rc2 {[%clk 0:00:03.5]} 52. gxh5 {[%clk 0:00:25.6]}
52... Kg7 {[%clk 0:00:03.7]} 53. h6+ {[%clk 0:00:25.3]} 53... Kh8 {[%clk
0:00:03.4]} 54. Qd4+ {[%clk 0:00:25.7]} 54... Kg8 {[%clk 0:00:02.9]} 55. Qg7#
{[%clk 0:00:26.6]} 1-0

[Event "Early-Titled-Tuesday-Blitz-May-07-2024"]
[Site "Chess.com"]
[Date "2024.05.07"]
[Round "7"]
[White "balack95"]
[Black "IM_ArthurDW08"]
[Result "0-1"]
[WhiteElo "2509"]
[BlackElo "2728"]
[TimeControl "180+1"]
[EndTime "9:22:29 PDT"]
[Termination "IM_ArthurDW08 won by checkmate"]

1. d4 {[%clk 0:03:00.9]} 1... Nf6 {[%clk 0:02:59.7]} 2. c4 {[%clk 0:03:00.9]}
2... c5 {[%clk 0:02:59.2]} 3. d5 {[%clk 0:03:01.1]} 3... e5 {[%clk 0:02:59.5]}
4. Nc3 {[%clk 0:02:56.9]} 4... d6 {[%clk 0:03:00]} 5. g3 {[%clk 0:02:56.9]} 5...
g6 {[%clk 0:02:57.9]} 6. Bg2 {[%clk 0:02:57.2]} 6... Bg7 {[%clk 0:02:58.3]} 7.
Nh3 {[%clk 0:02:57.1]} 7... O-O {[%clk 0:02:57.9]} 8. O-O {[%clk 0:02:57.7]}
8... Re8 {[%clk 0:02:43.7]} 9. e4 {[%clk 0:02:57.5]} 9... Na6 {[%clk 0:02:38.5]}
10. Bg5 {[%clk 0:02:53.1]} 10... h6 {[%clk 0:02:38.2]} 11. Bd2 {[%clk
0:02:53.3]} 11... Nc7 {[%clk 0:02:35.6]} 12. f4 {[%clk 0:02:40.3]} 12... exf4
{[%clk 0:02:36.5]} 13. gxf4 {[%clk 0:02:38]} 13... Bxh3 {[%clk 0:02:33.4]} 14.
Bxh3 {[%clk 0:02:37.3]} 14... Nxe4 {[%clk 0:02:33.9]} 15. f5 {[%clk 0:02:29.1]}
15... Qh4 {[%clk 0:02:24]} 16. Nxe4 {[%clk 0:02:20.2]} 16... Qxh3 {[%clk
0:01:47.6]} 17. Ng3 {[%clk 0:02:14.6]} 17... h5 {[%clk 0:01:46.3]} 18. fxg6
{[%clk 0:02:13.3]} 18... fxg6 {[%clk 0:01:47.2]} 19. Rf3 {[%clk 0:01:30.2]}
19... h4 {[%clk 0:01:41.5]} 20. Nf1 {[%clk 0:01:24.6]} 20... Qg4+ {[%clk
0:01:41]} 21. Kh1 {[%clk 0:01:24]} 21... Qe4 {[%clk 0:01:39.8]} 22. Bc3 {[%clk
0:01:19]} 22... Bxc3 {[%clk 0:01:29.1]} 23. bxc3 {[%clk 0:01:19.9]} 23... Qxc4
{[%clk 0:01:26.9]} 24. Qc2 {[%clk 0:01:01.9]} 24... Qe4 {[%clk 0:01:19.3]} 25.
Qg2 {[%clk 0:01:01.3]} 25... h3 {[%clk 0:01:16.6]} 26. Qxh3 {[%clk 0:00:58.1]}
26... Rf8 {[%clk 0:01:15.3]} 27. Nd2 {[%clk 0:00:56.2]} 27... Rxf3 {[%clk
0:01:14.6]} 28. Qxf3 {[%clk 0:00:53.8]} 28... Qxf3+ {[%clk 0:01:14]} 29. Nxf3
{[%clk 0:00:54.7]} 29... Rf8 {[%clk 0:01:09.8]} 30. Kg2 {[%clk 0:00:54.5]} 30...
Nxd5 {[%clk 0:01:09.6]} 31. Rb1 {[%clk 0:00:49.7]} 31... b6 {[%clk 0:01:04.5]}
32. Ng5 {[%clk 0:00:49.3]} 32... Rf5 {[%clk 0:00:59.7]} 33. h4 {[%clk
0:00:47.9]} 33... Kf8 {[%clk 0:00:53.6]} 34. Rb3 {[%clk 0:00:42.1]} 34... Ke7
{[%clk 0:00:48.6]} 35. Ra3 {[%clk 0:00:40.2]} 35... a5 {[%clk 0:00:45.3]} 36. c4
{[%clk 0:00:40.5]} 36... Nf4+ {[%clk 0:00:44.3]} 37. Kf3 {[%clk 0:00:36.6]}
37... Ne6+ {[%clk 0:00:44.2]} 38. Kg4 {[%clk 0:00:35.1]} 38... Nxg5 {[%clk
0:00:40.4]} 39. hxg5 {[%clk 0:00:36]} 39... Ke6 {[%clk 0:00:37.1]} 40. Rb3
{[%clk 0:00:35.3]} 40... Rf2 {[%clk 0:00:34.3]} 41. Rxb6 {[%clk 0:00:35.1]}
41... Rxa2 {[%clk 0:00:34.1]} 42. Rb8 {[%clk 0:00:34.8]} 42... Ra4 {[%clk
0:00:34.3]} 43. Re8+ {[%clk 0:00:34.8]} 43... Kf7 {[%clk 0:00:32.4]} 44. Re4
{[%clk 0:00:33.1]} 44... d5 {[%clk 0:00:32.3]} 45. Rf4+ {[%clk 0:00:32.5]} 45...
Ke7 {[%clk 0:00:32.8]} 46. Rf6 {[%clk 0:00:30.3]} 46... Rxc4+ {[%clk 0:00:32.5]}
47. Kf3 {[%clk 0:00:30.8]} 47... a4 {[%clk 0:00:27.3]} 48. Rxg6 {[%clk
0:00:31.1]} 48... Rb4 {[%clk 0:00:22.3]} 49. Rc6 {[%clk 0:00:21.4]} 49... c4
{[%clk 0:00:17.9]} 50. Kf4 {[%clk 0:00:21.9]} 50... c3+ {[%clk 0:00:17]} 51. Ke5
{[%clk 0:00:22.3]} 51... Rc4 {[%clk 0:00:17.9]} 52. Re6+ {[%clk 0:00:22.1]}
52... Kd7 {[%clk 0:00:17.7]} 53. Rd6+ {[%clk 0:00:22.5]} 53... Kc7 {[%clk
0:00:18]} 54. g6 {[%clk 0:00:21.5]} 54... c2 {[%clk 0:00:18.2]} 55. g7 {[%clk
0:00:21.8]} 55... c1=Q {[%clk 0:00:17.3]} 56. g8=Q {[%clk 0:00:19.4]} 56... Qf4+
{[%clk 0:00:17.9]} 57. Kxd5 {[%clk 0:00:17.7]} 57... Rd4+ {[%clk 0:00:18.3]} 58.
Kc5 {[%clk 0:00:18]} 58... Qxd6+ {[%clk 0:00:19.2]} 59. Kb5 {[%clk 0:00:18.7]}
59... Rb4+ {[%clk 0:00:19.3]} 60. Ka5 {[%clk 0:00:19]} 60... Qb6# {[%clk
0:00:20.2]} 0-1

[Event "Early-Titled-Tuesday-Blitz-May-07-2024"]
[Site "Chess.com"]
[Date "2024.05.07"]
[Round "7"]
[White "Juicy_Fork"]
[Black "Kunalm64"]
[Result "1-0"]
[WhiteElo "2450"]
[BlackElo "2622"]
[TimeControl "180+1"]
[EndTime "9:22:30 PDT"]
[Termination "Juicy_Fork won on time"]

1. e4 {[%clk 0:02:55.5]} 1... c6 {[%clk 0:03:00.1]} 2. d4 {[%clk 0:02:54.3]}
2... d5 {[%clk 0:03:00.8]} 3. f3 {[%clk 0:02:54]} 3... Qb6 {[%clk 0:02:58.6]} 4.
Nc3 {[%clk 0:02:52]} 4... dxe4 {[%clk 0:02:56.8]} 5. fxe4 {[%clk 0:02:52.1]}
5... e5 {[%clk 0:02:56.3]} 6. dxe5 {[%clk 0:02:45.1]} 6... Bc5 {[%clk
0:02:54.2]} 7. Nf3 {[%clk 0:02:39.6]} 7... Bf2+ {[%clk 0:02:44.8]} 8. Ke2 {[%clk
0:02:39.2]} 8... Be6 {[%clk 0:02:34.2]} 9. Qd3 {[%clk 0:02:29.7]} 9... Bc5
{[%clk 0:02:19.9]} 10. b3 {[%clk 0:02:14]} 10... Na6 {[%clk 0:02:17.3]} 11. Na4
{[%clk 0:02:08]} 11... Qc7 {[%clk 0:02:12.8]} 12. Nxc5 {[%clk 0:01:53.6]} 12...
Nxc5 {[%clk 0:02:12.2]} 13. Qe3 {[%clk 0:01:53.4]} 13... b6 {[%clk 0:02:00.4]}
14. Ba3 {[%clk 0:01:50.1]} 14... Ne7 {[%clk 0:01:52.2]} 15. Bxc5 {[%clk
0:01:39.4]} 15... bxc5 {[%clk 0:01:52]} 16. Qxc5 {[%clk 0:01:40.3]} 16... O-O
{[%clk 0:01:51.4]} 17. Kf2 {[%clk 0:01:37.8]} 17... Ng6 {[%clk 0:01:50.1]} 18.
Bd3 {[%clk 0:01:22.9]} 18... Bg4 {[%clk 0:01:48.5]} 19. Rhf1 {[%clk 0:01:12.5]}
19... Bxf3 {[%clk 0:01:46.6]} 20. gxf3 {[%clk 0:01:11.8]} 20... Nxe5 {[%clk
0:01:47]} 21. Kg2 {[%clk 0:01:06.8]} 21... Rad8 {[%clk 0:01:42.5]} 22. Rad1
{[%clk 0:01:05.2]} 22... Rd6 {[%clk 0:01:40.5]} 23. Kh1 {[%clk 0:00:58.1]} 23...
Rh6 {[%clk 0:01:39.5]} 24. Rd2 {[%clk 0:00:25]} 24... Rh3 {[%clk 0:01:23.4]} 25.
Rg1 {[%clk 0:00:15.8]} 25... Nxf3 {[%clk 0:01:11.8]} 26. Rxg7+ {[%clk
0:00:15.7]} 26... Kxg7 {[%clk 0:01:05.2]} 27. Rg2+ {[%clk 0:00:15.5]} 27... Kf6
{[%clk 0:01:02.6]} 28. Qf5+ {[%clk 0:00:15.1]} 28... Ke7 {[%clk 0:01:01.4]} 29.
Qxh3 {[%clk 0:00:16]} 29... Ne5 {[%clk 0:00:48.4]} 30. Qh4+ {[%clk 0:00:15.9]}
30... Ke8 {[%clk 0:00:44.4]} 31. Qf6 {[%clk 0:00:12.6]} 31... Qe7 {[%clk
0:00:33.2]} 32. Qf4 {[%clk 0:00:11.6]} 32... Qe6 {[%clk 0:00:13]} 33. Bf1 {[%clk
0:00:07.8]} 33... Ke7 {[%clk 0:00:08.7]} 34. Qh4+ {[%clk 0:00:06.8]} 34... f6
{[%clk 0:00:08]} 35. Qxh7+ {[%clk 0:00:06.1]} 35... Rf7 {[%clk 0:00:08.2]} 36.
Qh8 {[%clk 0:00:06]} 36... Qd6 {[%clk 0:00:06.4]} 37. Qa8 {[%clk 0:00:05.7]}
37... Qd4 {[%clk 0:00:05.7]} 38. Qb7+ {[%clk 0:00:05]} 38... Ke6 {[%clk
0:00:04.9]} 39. Qc8+ {[%clk 0:00:05.2]} 39... Kd6 {[%clk 0:00:01.5]} 40. Qd8+
{[%clk 0:00:04.1]} 40... Kc5 {[%clk 0:00:00.6]} 41. Qa5+ {[%clk 0:00:02.4]}
41... Kd6 {[%clk 0:00:00.5]} 42. Rd2 {[%clk 0:00:02.9]} 1-0

[Event "Early-Titled-Tuesday-Blitz-May-07-2024"]
[Site "Chess.com"]
[Date "2024.05.07"]
[Round "7"]
[White "vugarrasulov"]
[Black "miragha_yev"]
[Result "1-0"]
[WhiteElo "2980"]
[BlackElo "2833"]
[TimeControl "180+1"]
[EndTime "9:22:32 PDT"]
[Termination "vugarrasulov won by resignation"]

1. e4 {[%clk 0:03:00.9]} 1... c5 {[%clk 0:02:57.9]} 2. Nf3 {[%clk 0:02:59.8]}
2... e6 {[%clk 0:02:57.6]} 3. d4 {[%clk 0:02:58.6]} 3... cxd4 {[%clk 0:02:58.5]}
4. Nxd4 {[%clk 0:02:59.2]} 4... Nf6 {[%clk 0:02:59.1]} 5. Nc3 {[%clk 0:02:56.3]}
5... Nc6 {[%clk 0:02:59.7]} 6. a3 {[%clk 0:02:56.5]} 6... d5 {[%clk 0:02:58.1]}
7. Bb5 {[%clk 0:02:54.8]} 7... Bd7 {[%clk 0:02:56.8]} 8. Nxc6 {[%clk 0:02:54.2]}
8... bxc6 {[%clk 0:02:56.6]} 9. Bd3 {[%clk 0:02:54.6]} 9... Bd6 {[%clk
0:02:56.9]} 10. Qe2 {[%clk 0:02:54]} 10... Qc7 {[%clk 0:02:57]} 11. Bg5 {[%clk
0:02:48.3]} 11... Rb8 {[%clk 0:02:46.8]} 12. Bxf6 {[%clk 0:02:39.2]} 12... gxf6
{[%clk 0:02:45.8]} 13. Rb1 {[%clk 0:02:20.6]} 13... Qa5 {[%clk 0:02:41.5]} 14.
O-O {[%clk 0:02:17.9]} 14... Rg8 {[%clk 0:02:30.7]} 15. exd5 {[%clk 0:02:13.8]}
15... cxd5 {[%clk 0:02:31.6]} 16. Kh1 {[%clk 0:02:12.7]} 16... Be5 {[%clk
0:02:23.7]} 17. f4 {[%clk 0:02:01.8]} 17... Bxc3 {[%clk 0:02:23.6]} 18. bxc3
{[%clk 0:02:02.7]} 18... Ke7 {[%clk 0:02:22.4]} 19. Rxb8 {[%clk 0:01:47.9]}
19... Rxb8 {[%clk 0:02:21.9]} 20. c4 {[%clk 0:01:37.7]} 20... dxc4 {[%clk
0:02:19.5]} 21. Bxc4 {[%clk 0:01:38.6]} 21... Qxa3 {[%clk 0:02:15.3]} 22. f5
{[%clk 0:01:38.4]} 22... Qc5 {[%clk 0:02:08.4]} 23. fxe6 {[%clk 0:01:37.9]}
23... Bxe6 {[%clk 0:02:09.3]} 24. Bd3 {[%clk 0:01:36.9]} 24... a5 {[%clk
0:01:47.2]} 25. Qf3 {[%clk 0:01:34]} 25... Qd4 {[%clk 0:01:38.7]} 26. h3 {[%clk
0:01:22.1]} 26... a4 {[%clk 0:01:38.3]} 27. Qc6 {[%clk 0:01:21.3]} 27... Rd8
{[%clk 0:01:16.9]} 28. Qa6 {[%clk 0:01:16.6]} 28... Qb4 {[%clk 0:00:57.9]} 29.
Ra1 {[%clk 0:00:56.7]} 29... Rd4 {[%clk 0:00:57.6]} 30. Qa8 {[%clk 0:00:52.3]}
30... h6 {[%clk 0:00:54]} 31. Bf1 {[%clk 0:00:42.9]} 31... f5 {[%clk 0:00:53.6]}
32. Qc6 {[%clk 0:00:37.3]} 32... Rf4 {[%clk 0:00:42.1]} 33. c3 {[%clk
0:00:36.8]} 33... Qe4 {[%clk 0:00:39.9]} 34. Qc5+ {[%clk 0:00:29.5]} 34... Kf6
{[%clk 0:00:39.6]} 35. Kg1 {[%clk 0:00:28.9]} 35... Kg7 {[%clk 0:00:39.4]} 36.
c4 {[%clk 0:00:27]} 36... Bxc4 {[%clk 0:00:32.5]} 37. Bxc4 {[%clk 0:00:27.5]}
37... Qxc4 {[%clk 0:00:33.2]} 38. Qe5+ {[%clk 0:00:28.2]} 38... Kg6 {[%clk
0:00:31.8]} 39. Kh1 {[%clk 0:00:28.4]} 39... Re4 {[%clk 0:00:31.2]} 40. Qh8
{[%clk 0:00:27.8]} 40... Qd4 {[%clk 0:00:29.8]} 41. Qg8+ {[%clk 0:00:26.7]}
41... Qg7 {[%clk 0:00:29.6]} 42. Qxg7+ {[%clk 0:00:26.3]} 42... Kxg7 {[%clk
0:00:30.5]} 43. Kh2 {[%clk 0:00:26.9]} 43... f4 {[%clk 0:00:30.8]} 44. Kg1
{[%clk 0:00:26.9]} 44... Kf6 {[%clk 0:00:31]} 45. Kf2 {[%clk 0:00:27.6]} 45...
Ke5 {[%clk 0:00:31.6]} 46. Ra3 {[%clk 0:00:26.3]} 46... Rd4 {[%clk 0:00:31.2]}
47. Kf3 {[%clk 0:00:26.3]} 47... Kd5 {[%clk 0:00:31.9]} 48. Kg4 {[%clk
0:00:23.6]} 48... Kc4 {[%clk 0:00:30.7]} 49. Rxa4+ {[%clk 0:00:22.2]} 49... Kd5
{[%clk 0:00:29.1]} 50. Rxd4+ {[%clk 0:00:23.1]} 50... Kxd4 {[%clk 0:00:30]} 51.
Kxf4 {[%clk 0:00:23.7]} 51... Kd3 {[%clk 0:00:30.3]} 52. h4 {[%clk 0:00:17.8]}
52... Ke2 {[%clk 0:00:28.5]} 53. g4 {[%clk 0:00:14.2]} 53... Kf2 {[%clk
0:00:28.9]} 54. h5 {[%clk 0:00:09.4]} 54... Kg2 {[%clk 0:00:21.9]} 55. g5 {[%clk
0:00:09.4]} 55... hxg5+ {[%clk 0:00:21.6]} 56. Kxg5 {[%clk 0:00:10.3]} 56... Kg3
{[%clk 0:00:21.9]} 57. h6 {[%clk 0:00:10.8]} 57... f5 {[%clk 0:00:22.3]} 58.
Kxf5 {[%clk 0:00:10.9]} 58... Kf3 {[%clk 0:00:22.5]} 59. h7 {[%clk 0:00:11.8]}
1-0

[Event "Early-Titled-Tuesday-Blitz-May-07-2024"]
[Site "Chess.com"]
[Date "2024.05.07"]
[Round "7"]
[White "karinachess1"]
[Black "Lady_Nika"]
[Result "1-0"]
[WhiteElo "2609"]
[BlackElo "2478"]
[TimeControl "180+1"]
[EndTime "9:22:33 PDT"]
[Termination "karinachess1 won on time"]

1. e4 {[%clk 0:03:00.9]} 1... e6 {[%clk 0:02:59.8]} 2. d4 {[%clk 0:02:57.7]}
2... d5 {[%clk 0:02:59.9]} 3. e5 {[%clk 0:02:58.2]} 3... c5 {[%clk 0:03:00]} 4.
c3 {[%clk 0:02:58.9]} 4... Qb6 {[%clk 0:02:59.7]} 5. Nf3 {[%clk 0:02:59]} 5...
Bd7 {[%clk 0:02:59.8]} 6. a3 {[%clk 0:02:59.5]} 6... c4 {[%clk 0:02:59.6]} 7.
Nbd2 {[%clk 0:02:58.2]} 7... Nc6 {[%clk 0:02:59.9]} 8. Be2 {[%clk 0:02:56.6]}
8... Na5 {[%clk 0:02:59.7]} 9. Rb1 {[%clk 0:02:56.1]} 9... Ne7 {[%clk
0:02:54.8]} 10. O-O {[%clk 0:02:55.3]} 10... Ng6 {[%clk 0:02:50.6]} 11. g3
{[%clk 0:02:52.1]} 11... Be7 {[%clk 0:02:49.7]} 12. Qc2 {[%clk 0:02:45.4]} 12...
h5 {[%clk 0:02:28.6]} 13. h4 {[%clk 0:02:44.4]} 13... Nf8 {[%clk 0:02:26.2]} 14.
b3 {[%clk 0:02:42.5]} 14... cxb3 {[%clk 0:02:24.2]} 15. Nxb3 {[%clk 0:02:42.7]}
15... Ba4 {[%clk 0:02:18.4]} 16. Nfd2 {[%clk 0:02:42.8]} 16... Nxb3 {[%clk
0:02:13.7]} 17. Nxb3 {[%clk 0:02:42.3]} 17... Nd7 {[%clk 0:02:08.4]} 18. Qa2
{[%clk 0:02:40.4]} 18... Qc7 {[%clk 0:02:00.6]} 19. Be3 {[%clk 0:02:21.1]} 19...
Rc8 {[%clk 0:01:55.1]} 20. Rfc1 {[%clk 0:02:17.6]} 20... b5 {[%clk 0:01:43]} 21.
Nd2 {[%clk 0:02:00.8]} 21... a6 {[%clk 0:01:42.6]} 22. Nf3 {[%clk 0:01:53.2]}
22... Nb6 {[%clk 0:01:41.8]} 23. Bg5 {[%clk 0:01:46.7]} 23... f6 {[%clk
0:01:38]} 24. exf6 {[%clk 0:01:26.6]} 24... gxf6 {[%clk 0:01:38.9]} 25. Bf4
{[%clk 0:01:27]} 25... Qc6 {[%clk 0:01:34.1]} 26. Ne1 {[%clk 0:01:16.1]} 26...
Nc4 {[%clk 0:01:27.3]} 27. Nd3 {[%clk 0:01:07.2]} 27... Bxa3 {[%clk 0:01:22.2]}
28. Nb4 {[%clk 0:00:55.9]} 28... Bxb4 {[%clk 0:01:17.3]} 29. cxb4 {[%clk
0:00:56.8]} 29... Qb6 {[%clk 0:00:55.8]} 30. Qa1 {[%clk 0:00:51.1]} 30... Kf7
{[%clk 0:00:49.6]} 31. Bf3 {[%clk 0:00:51]} 31... Qb7 {[%clk 0:00:34.4]} 32. Qa2
{[%clk 0:00:49.9]} 32... Nb6 {[%clk 0:00:30.7]} 33. Qe2 {[%clk 0:00:49.1]} 33...
Rxc1+ {[%clk 0:00:19.1]} 34. Rxc1 {[%clk 0:00:50]} 34... Nc4 {[%clk 0:00:18.7]}
35. Bxh5+ {[%clk 0:00:49.6]} 35... Ke7 {[%clk 0:00:19.1]} 36. Bg4 {[%clk
0:00:47.2]} 36... Qc6 {[%clk 0:00:17.1]} 37. Re1 {[%clk 0:00:47.4]} 37... Re8
{[%clk 0:00:12]} 38. Qxe6+ {[%clk 0:00:41.8]} 38... Qxe6 {[%clk 0:00:11.4]} 39.
Rxe6+ {[%clk 0:00:42.7]} 39... Kf7 {[%clk 0:00:11.3]} 40. Rxa6 {[%clk 0:00:41]}
40... Re1+ {[%clk 0:00:10]} 41. Kg2 {[%clk 0:00:41.6]} 41... Bc2 {[%clk
0:00:09.9]} 42. h5 {[%clk 0:00:35.5]} 42... Be4+ {[%clk 0:00:09.6]} 43. f3
{[%clk 0:00:36.1]} 43... Bd3 {[%clk 0:00:07.9]} 44. Ra7+ {[%clk 0:00:33.4]}
44... Ke8 {[%clk 0:00:06.2]} 45. h6 {[%clk 0:00:30.8]} 45... Re2+ {[%clk
0:00:05.1]} 46. Kh3 {[%clk 0:00:29.4]} 46... Re1 {[%clk 0:00:04.9]} 47. Bh5+
{[%clk 0:00:20.3]} 47... Kd8 {[%clk 0:00:05]} 48. h7 {[%clk 0:00:14.8]} 48...
Rh1+ {[%clk 0:00:03]} 49. Kg4 {[%clk 0:00:15.3]} 49... f5+ {[%clk 0:00:01.8]}
50. Kg5 {[%clk 0:00:15.7]} 50... Rxh5+ {[%clk 0:00:02]} 51. Kxh5 {[%clk
0:00:16]} 1-0

[Event "Early-Titled-Tuesday-Blitz-May-07-2024"]
[Site "Chess.com"]
[Date "2024.05.07"]
[Round "7"]
[White "highlama"]
[Black "catalin009"]
[Result "0-1"]
[WhiteElo "2401"]
[BlackElo "2566"]
[TimeControl "180+1"]
[EndTime "9:22:33 PDT"]
[Termination "catalin009 won by checkmate"]

1. c4 {[%clk 0:03:00.9]} 1... Nf6 {[%clk 0:02:58.7]} 2. Nf3 {[%clk 0:03:01.4]}
2... e6 {[%clk 0:02:59.1]} 3. g3 {[%clk 0:03:01.6]} 3... d5 {[%clk 0:02:59.7]}
4. Bg2 {[%clk 0:03:02]} 4... Be7 {[%clk 0:03:00.3]} 5. O-O {[%clk 0:03:02.5]}
5... O-O {[%clk 0:03:01]} 6. d4 {[%clk 0:03:02.3]} 6... c6 {[%clk 0:02:59.4]} 7.
b3 {[%clk 0:03:00.5]} 7... b6 {[%clk 0:02:59.5]} 8. Nc3 {[%clk 0:03:00.7]} 8...
Ba6 {[%clk 0:02:51]} 9. Qd3 {[%clk 0:02:59.9]} 9... Nbd7 {[%clk 0:02:51.3]} 10.
Rd1 {[%clk 0:02:52.3]} 10... c5 {[%clk 0:02:42]} 11. Nb5 {[%clk 0:02:49.4]}
11... Bxb5 {[%clk 0:02:37.1]} 12. cxb5 {[%clk 0:02:49.4]} 12... Rc8 {[%clk
0:02:37.7]} 13. Bb2 {[%clk 0:02:29.7]} 13... c4 {[%clk 0:02:14.1]} 14. bxc4
{[%clk 0:02:29.2]} 14... dxc4 {[%clk 0:02:15]} 15. Qc2 {[%clk 0:02:29.3]} 15...
c3 {[%clk 0:02:15.7]} 16. Bc1 {[%clk 0:02:29.2]} 16... Nd5 {[%clk 0:02:10.4]}
17. a3 {[%clk 0:02:28.4]} 17... f5 {[%clk 0:02:05.2]} 18. Rb1 {[%clk 0:02:19.9]}
18... Bd6 {[%clk 0:01:58.1]} 19. Rb3 {[%clk 0:02:16.2]} 19... Qe7 {[%clk
0:01:55.5]} 20. e3 {[%clk 0:02:12]} 20... N7f6 {[%clk 0:01:46.2]} 21. Ne1 {[%clk
0:02:07.8]} 21... Rc4 {[%clk 0:01:27.1]} 22. Qd3 {[%clk 0:01:26.6]} 22... Rfc8
{[%clk 0:01:19.8]} 23. Nc2 {[%clk 0:01:23.8]} 23... Qd7 {[%clk 0:01:00]} 24. f3
{[%clk 0:01:22.6]} 24... Bb8 {[%clk 0:00:31.8]} 25. e4 {[%clk 0:01:20.6]} 25...
fxe4 {[%clk 0:00:32.7]} 26. fxe4 {[%clk 0:01:21.1]} 26... Ne7 {[%clk 0:00:33.4]}
27. Bh3 {[%clk 0:01:10.6]} 27... Ng6 {[%clk 0:00:15.8]} 28. d5 {[%clk
0:01:03.6]} 28... Ne5 {[%clk 0:00:11.5]} 29. Qxc4 {[%clk 0:00:54.4]} 29... Rxc4
{[%clk 0:00:07.3]} 30. Bxe6+ {[%clk 0:00:53.5]} 30... Kf8 {[%clk 0:00:05.6]} 31.
Bxd7 {[%clk 0:00:52.6]} 31... Nfxd7 {[%clk 0:00:05.8]} 32. Kg2 {[%clk
0:00:42.8]} 32... Rxe4 {[%clk 0:00:03.6]} 33. Rxc3 {[%clk 0:00:39.6]} 33... Nc5
{[%clk 0:00:02.8]} 34. Rf1+ {[%clk 0:00:37.3]} 34... Kg8 {[%clk 0:00:02.4]} 35.
Ne3 {[%clk 0:00:28.1]} 35... Ned3 {[%clk 0:00:02.5]} 36. Rc4 {[%clk 0:00:25.6]}
36... Re8 {[%clk 0:00:01.7]} 37. Bd2 {[%clk 0:00:23]} 37... Ne5 {[%clk
0:00:01.9]} 38. Rh4 {[%clk 0:00:21.5]} 38... Ned3 {[%clk 0:00:02.8]} 39. Rh5
{[%clk 0:00:18.7]} 39... Nb3 {[%clk 0:00:03.3]} 40. Nc4 {[%clk 0:00:11.4]} 40...
Nxd2 {[%clk 0:00:03]} 41. Nxd2 {[%clk 0:00:12.3]} 41... Re2+ {[%clk 0:00:03.5]}
42. Kh3 {[%clk 0:00:13.1]} 42... Rxd2 {[%clk 0:00:03.5]} 43. Rhf5 {[%clk
0:00:12.7]} 43... Bd6 {[%clk 0:00:02.8]} 44. Rf7 {[%clk 0:00:12.8]} 44... Ne5
{[%clk 0:00:02.7]} 45. Rxa7 {[%clk 0:00:12.3]} 45... h5 {[%clk 0:00:02.8]} 46.
Ra8+ {[%clk 0:00:11.8]} 46... Kh7 {[%clk 0:00:03.2]} 47. Kh4 {[%clk 0:00:09.5]}
47... Kg6 {[%clk 0:00:03]} 48. h3 {[%clk 0:00:07.2]} 48... Be7+ {[%clk
0:00:03.2]} 49. Rf6+ {[%clk 0:00:05.3]} 49... Bxf6# {[%clk 0:00:04.1]} 0-1